fUST/lending_fUST_20240616
["ID","MTS","AMOUNT","RATE_DAILY","PERIOD"]
[329612932,1718506247590,-738.0,0.00016823,2]
[329612934,1718506247600,-738.0,0.00016823,2]
[329612935,1718506247611,-738.0,0.00016823,2]
[329612937,1718506247632,-738.0,0.00016823,2]
[329612940,1718506247647,-738.0,0.00016823,2]
[329612943,1718506247675,-738.0,0.00016823,2]
[329612947,1718506247698,-738.0,0.00016823,2]
[329612950,1718506247723,-738.0,0.00016823,2]
[329612953,1718506247741,-738.0,0.00016823,2]
[329612957,1718506247762,-738.0,0.00016823,2]
[329612961,1718506247786,-738.0,0.00016823,2]
[329612962,1718506247800,-738.0,0.00016823,2]
[329612966,1718506247817,-738.0,0.00016823,2]
[329612969,1718506247845,-738.0,0.00016823,2]
[329612971,1718506247872,-738.0,0.00016823,2]
[329612973,1718506247886,-738.0,0.00016823,2]
[329612977,1718506247906,-198.39773,0.00016827,2]
[329612979,1718506247925,-170.939998,0.00016827,2]
[329612982,1718506247944,-294.468373,0.00016827,2]
[329612984,1718506247974,-167.304851,0.00016827,2]
[329612993,1718506247990,-200.765822,0.00016827,2]
[329612996,1718506248113,-196.312248,0.00016827,2]
[329612997,1718506248131,-228.0,0.00016936,2]
[329612999,1718506248147,-151.0,0.00016936,2]
[329613001,1718506248162,-500.0,0.00016944,2]
[329613003,1718506248185,-500.0,0.00016944,2]
[329613005,1718506248202,-481.77948702,0.00016944,2]
[329613008,1718506248224,-500.0,0.00016944,2]
[329613010,1718506248252,-500.0,0.00016944,2]
[329613012,1718506248278,-500.0,0.00016944,2]
[329613014,1718506248293,-500.0,0.00016944,2]
[329613016,1718506248311,-500.0,0.00016944,2]
[329613018,1718506248339,-242.65702632,0.00016944,2]
[329613020,1718506248355,-500.0,0.00016944,2]
[329613022,1718506248371,-500.0,0.00016944,2]
[329613024,1718506248385,-500.0,0.00016944,2]
[329613026,1718506248405,-546.21,0.00016944,2]
[329613028,1718506248426,-500.0,0.00016946,2]
[329613029,1718506248437,-500.0,0.00016986,2]
[329613030,1718506248449,-707.23,0.00016986,2]
[329613031,1718506248460,-500.0,0.00016986,2]
[329613032,1718506248475,-2041.0,0.00016986,2]
[329613034,1718506248488,-1563.36,0.00016986,2]
[329613036,1718506248504,-1073.85,0.00016986,2]
[329613039,1718506248535,-500.0,0.00016986,2]
[329613041,1718506248548,-2954.08,0.00016986,2]
[329613042,1718506248564,-1209.09,0.00016986,2]
[329613043,1718506248583,-500.0,0.00016986,2]
[329613044,1718506248597,-1526.37,0.00016986,2]
[329613045,1718506248618,-1957.11,0.00016986,2]
[329613046,1718506248655,-500.0,0.00016986,2]
[329613047,1718506248697,-550.04,0.00016986,2]
[329613048,1718506248723,-500.0,0.00016986,2]
[329613049,1718506248735,-500.0,0.00016986,2]
[329613050,1718506248749,-4205.95,0.00016986,2]
[329613051,1718506248783,-500.0,0.00016986,2]
[329613052,1718506248798,-900.43,0.00016986,2]
[329613054,1718506248819,-500.0,0.00016986,2]
[329613056,1718506248833,-500.0,0.00016986,2]
[329613058,1718506248878,-500.0,0.00016986,2]
[329613060,1718506248890,-1248.12,0.00016986,2]
[329613062,1718506248912,-500.0,0.00016986,2]
[329613064,1718506248924,-500.0,0.00016986,2]
[329613066,1718506248939,-1320.68,0.00016986,2]
[329613068,1718506248960,-2072.14,0.00016986,2]
[329613070,1718506248986,-3915.95,0.00016986,2]
[329613072,1718506249000,-87526.21932509,0.00017,2]
[329613073,1718506249011,-6753.42411624,0.00017,2]
[329613074,1718506249060,-200.765822,0.00017037,2]
[329613075,1718506249077,-228.0,0.00017061,2]
[329613076,1718506249090,-151.0,0.00017061,2]
[329613077,1718506249118,-155.17295208,0.00017125,2]
[329613078,1718506249129,-155.09573107,0.00017125,2]
[329613079,1718506249153,-155.22746647,0.00017125,2]
[329613080,1718506249173,-155.19235036,0.00017125,2]
[329613081,1718506249185,-228.0,0.00017185,2]
[329613082,1718506249204,-151.0,0.00017185,2]
[329613083,1718506249217,-455.11131689,0.00017218,2]
[329613084,1718506249228,-500.0,0.00017218,2]
[329613085,1718506249264,-500.0,0.00017218,2]
[329613086,1718506249304,-500.0,0.00017218,2]
[329613087,1718506249316,-500.0,0.00017218,2]
[329613089,1718506249341,-500.0,0.00017218,2]
[329613091,1718506249352,-500.0,0.00017218,2]
[329613092,1718506249365,-500.0,0.00017218,2]
[329613093,1718506249392,-500.0,0.00017218,2]
[329613094,1718506249407,-500.0,0.00017218,2]
[329613095,1718506249440,-546.21,0.00017218,2]
[329613096,1718506249458,-500.0,0.0001722,2]
[329613097,1718506249472,-198.39773,0.00017248,2]
[329613098,1718506249489,-196.312248,0.00017248,2]
[329613099,1718506249506,-200.765822,0.00017248,2]
[329613100,1718506249519,-584.88600317,0.0001726,2]
[329613101,1718506249531,-707.23,0.0001726,2]
[329613102,1718506249542,-500.0,0.0001726,2]
[329613103,1718506249555,-2041.0,0.0001726,2]
[329613104,1718506249592,-1563.36,0.0001726,2]
[329613105,1718506249604,-1073.85,0.0001726,2]
[329613106,1718506249625,-500.0,0.0001726,2]
[329613107,1718506249638,-2954.08,0.0001726,2]
[329613108,1718506249650,-1209.09,0.0001726,2]
[329613109,1718506249662,-500.0,0.0001726,2]
[329613110,1718506249675,-1526.37,0.0001726,2]
[329613111,1718506249688,-1957.11,0.0001726,2]
[329613114,1718506249702,-500.0,0.0001726,2]
[329613115,1718506249715,-550.04,0.0001726,2]
[329613117,1718506249727,-500.0,0.0001726,2]
[329613118,1718506249738,-500.0,0.0001726,2]
[329613119,1718506249752,-504.81008496,0.0001726,2]
[329613120,1718506249770,-4205.95,0.0001726,2]
[329613121,1718506249787,-900.43,0.0001726,2]
[329613122,1718506249813,-500.0,0.0001726,2]
[329613123,1718506249826,-547.27440806,0.0001726,2]
[329613124,1718506249851,-500.0,0.0001726,2]
[329613125,1718506249873,-1248.12,0.0001726,2]
[329613126,1718506249896,-500.0,0.0001726,2]
[329613127,1718506249911,-500.0,0.0001726,2]
[329613128,1718506249940,-1320.68,0.0001726,2]
[329613129,1718506249973,-2072.14,0.0001726,2]
[329613130,1718506249984,-3915.95,0.0001726,2]
[329613131,1718506249997,-228.0,0.0001731,2]
[329613132,1718506250010,-151.0,0.0001731,2]
[329613133,1718506250033,-228.0,0.00017434,2]
[329613134,1718506250047,-151.0,0.00017434,2]
[329613135,1718506250059,-200.765822,0.00017458,2]
[329613136,1718506250073,-160.0,0.00017467,2]
[329613138,1718506250085,-500.0,0.00017492,2]
[329613140,1718506250100,-320.97904498,0.00017492,2]
[329613142,1718506250131,-500.0,0.00017492,2]
[329613144,1718506250158,-500.0,0.00017492,2]
[329613147,1718506250192,-502.57656139,0.00017492,2]
[329613150,1718506250260,-500.0,0.00017492,2]
[329613153,1718506250288,-500.0,0.00017492,2]
[329613154,1718506250304,-500.0,0.00017492,2]
[329613155,1718506250316,-500.0,0.00017492,2]
[329613156,1718506250337,-546.21,0.00017492,2]
[329613157,1718506250354,-500.0,0.00017493,2]
[329613158,1718506250367,-810.06405385,0.000175,3]
[329613159,1718506250377,-155.0,0.0001752,2]
[329613160,1718506250389,-707.23,0.00017534,2]
[329613161,1718506250407,-500.0,0.00017534,2]
[329613162,1718506250423,-2041.0,0.00017534,2]
[329613163,1718506250438,-1563.36,0.00017534,2]
[329613164,1718506250452,-1073.85,0.00017534,2]
[329613165,1718506250465,-500.0,0.00017534,2]
[329613166,1718506250478,-2954.08,0.00017534,2]
[329613167,1718506250489,-1209.09,0.00017534,2]
[329613168,1718506250506,-500.0,0.00017534,2]
[329613169,1718506250520,-1526.37,0.00017534,2]
[329613170,1718506250547,-1957.11,0.00017534,2]
[329613171,1718506250563,-500.0,0.00017534,2]
[329613172,1718506250577,-550.04,0.00017534,2]
[329613173,1718506250610,-500.0,0.00017534,2]
[329613174,1718506250629,-500.0,0.00017534,2]
[329613175,1718506250677,-4205.95,0.00017534,2]
[329613176,1718506250696,-900.43,0.00017534,2]
[329613177,1718506250714,-500.0,0.00017534,2]
[329613178,1718506250748,-500.0,0.00017534,2]
[329613179,1718506250766,-1248.12,0.00017534,2]
[329613180,1718506250786,-500.0,0.00017534,2]
[329613181,1718506250813,-500.0,0.00017534,2]
[329613182,1718506250840,-1320.68,0.00017534,2]
[329613183,1718506250857,-2072.14,0.00017534,2]
[329613184,1718506250884,-3915.95,0.00017534,2]
[329613185,1718506250899,-228.0,0.00017559,2]
[329613186,1718506250953,-151.0,0.00017559,2]
[329613187,1718506250988,-198.39773,0.00017668,2]
[329613188,1718506251050,-196.312248,0.00017668,2]
[329613189,1718506251119,-170.939998,0.00017668,2]
[329613190,1718506251148,-167.304851,0.00017668,2]
[329613191,1718506251175,-200.765822,0.00017668,2]
[329613192,1718506251200,-228.0,0.00017683,2]
[329613193,1718506251219,-151.0,0.00017683,2]
[329613194,1718506251244,-500.0,0.00017766,2]
[329613195,1718506251258,-500.0,0.00017766,2]
[329613196,1718506251270,-500.0,0.00017766,2]
[329613197,1718506251285,-500.0,0.00017766,2]
[329613198,1718506251301,-500.0,0.00017766,2]
[329613199,1718506251319,-500.0,0.00017766,2]
[329613200,1718506251332,-500.0,0.00017766,2]
[329613201,1718506251350,-546.21,0.00017766,2]
[329613202,1718506251365,-500.0,0.00017767,2]
[329613203,1718506251379,-707.23,0.00017808,2]
[329613204,1718506251393,-500.0,0.00017808,2]
[329613205,1718506251410,-2041.0,0.00017808,2]
[329613206,1718506251433,-1563.36,0.00017808,2]
[329613207,1718506251455,-1073.85,0.00017808,2]
[329613208,1718506251471,-500.0,0.00017808,2]
[329613209,1718506251482,-1209.09,0.00017808,2]
[329613210,1718506251494,-2954.08,0.00017808,2]
[329613211,1718506251506,-500.0,0.00017808,2]
[329613212,1718506251517,-1526.37,0.00017808,2]
[329613213,1718506251527,-1957.11,0.00017808,2]
[329613214,1718506251546,-500.0,0.00017808,2]
[329613215,1718506251556,-550.04,0.00017808,2]
[329613216,1718506251567,-500.0,0.00017808,2]
[329613217,1718506251591,-399.8477976,0.00017808,2]
[329613218,1718506251609,-4205.95,0.00017808,2]
[329613219,1718506251623,-900.43,0.00017808,2]
[329613220,1718506251642,-500.0,0.00017808,2]
[329613221,1718506251666,-500.0,0.00017808,2]
[329613222,1718506251677,-1248.12,0.00017808,2]
[329613223,1718506251694,-500.0,0.00017808,2]
[329613224,1718506251707,-500.0,0.00017808,2]
[329613225,1718506251724,-1320.68,0.00017808,2]
[329613226,1718506251739,-228.0,0.00017808,2]
[329613227,1718506251749,-151.0,0.00017808,2]
[329613228,1718506251765,-2072.14,0.00017808,2]
[329613229,1718506251777,-3915.95,0.00017808,2]
[329613230,1718506251801,-5000.0,0.00017875,2]
[329613231,1718506251817,-11880.84051391,0.0001788,2]
[329613232,1718506251837,-156.75739686,0.00017973,2]
[329613233,1718506251853,-317.21490521,0.00017974,2]
[329613234,1718506251867,-205690.22481127,0.00017975,3]
[329613237,1718506252424,-905.1045208,0.00014432,2]
[329613238,1718506252451,-1638.70047162,0.00014432,2]
[329613244,1718506423688,3000.0,0.00023,30]
[329613245,1718506691510,1582.16020003,0.0001,2]
[329613246,1718506737528,1011.27614724,0.00012327,2]
[329613247,1718506761438,674.18409816,0.00012327,2]
[329613248,1718506787454,561.8200818,0.00012327,2]
[329613249,1718506807428,292.70826262,0.00012327,2]
[329613250,1718506823459,292.70826262,0.00012327,2]
[329613251,1718506841464,292.70826262,0.00012327,2]
[329613252,1718506859429,292.70826262,0.00012327,2]
[329613253,1718506873464,292.70826262,0.00012327,2]
[329613254,1718506891465,292.70826262,0.00012327,2]
[329613255,1718506910478,292.70826262,0.00012327,2]
[329613256,1718506925449,292.70826262,0.00012327,2]
[329613257,1718506945441,292.70826262,0.00012327,2]
[329613258,1718506963460,292.70826262,0.00012327,2]
[329613259,1718506983459,443.8378646,0.00012327,2]
[329613260,1718507022572,3000.0,0.00023,30]
[329613263,1718507195571,1582.16020003,0.0001,2]
[329613341,1718507435833,-1985.36774718,0.00014999,2]
[329613342,1718507435858,-3815.94269031,0.00015,2]
[329613393,1718507445294,-3942.44081161,0.00015,2]
[329613394,1718507445470,-1838.84704834,0.00015,2]
[329613395,1718507445500,-1582.16020003,0.00015001,2]
[329613396,1718507445520,-300.0,0.00015002,2]
[329613398,1718507445538,-237.548412,0.0001501,2]
[329613399,1718507445551,-1668.7255589,0.00015015,2]
[329613401,1718507445581,-322.79406323,0.00015707,2]
[329613404,1718507445624,-150.071,0.00016071,2]
[329613407,1718507445647,-257.092262,0.00016164,2]
[329613409,1718507445666,-394.41172031,0.00016419,2]
[329613411,1718507445677,-191.0,0.00016419,2]
[329613412,1718507445689,-1303.14751118,0.0001642,2]
[329613414,1718507445700,-5156.47362614,0.00016436,2]
[329613416,1718507445714,-208.51418542,0.00016436,2]
[329613417,1718507445730,-1106.63458842,0.00016437,2]
[329613419,1718507445746,-500.0,0.00016438,2]
[329613421,1718507445762,-500.0,0.00016438,2]
[329613423,1718507445775,-500.0,0.00016438,2]
[329613426,1718507445809,-500.0,0.00016438,2]
[329613428,1718507445837,-500.0,0.00016438,2]
[329613430,1718507445859,-500.0,0.00016438,2]
[329613432,1718507445890,-500.0,0.00016438,2]
[329613434,1718507445910,-441.1674571,0.00016438,2]
[329613436,1718507445932,-500.0,0.00016438,2]
[329613438,1718507445958,-3285.18,0.00016438,2]
[329613440,1718507445984,-1749.71,0.00016438,2]
[329613441,1718507446015,-2521.52,0.00016438,2]
[329613442,1718507446049,-500.0,0.00016438,2]
[329613443,1718507446063,-515.01,0.00016438,2]
[329613444,1718507446109,-500.0,0.00016438,2]
[329613445,1718507446122,-1000.14,0.00016438,2]
[329613446,1718507446138,-500.0,0.00016438,2]
[329613447,1718507446164,-1675.93,0.00016438,2]
[329613448,1718507446185,-1296.46,0.00016438,2]
[329613449,1718507446195,-500.0,0.00016438,2]
[329613450,1718507446222,-1266.79,0.00016438,2]
[329613451,1718507446249,-500.0,0.00016438,2]
[329613452,1718507446261,-500.0,0.00016438,2]
[329613453,1718507446277,-500.0,0.00016438,2]
[329613454,1718507446290,-758.65,0.00016438,2]
[329613455,1718507446301,-3430.86,0.00016438,2]
[329613457,1718507446319,-500.0,0.00016438,2]
[329613458,1718507446329,-500.0,0.00016438,2]
[329613460,1718507446342,-797.98,0.00016438,2]
[329613462,1718507446353,-500.0,0.00016438,2]
[329613464,1718507446364,-500.0,0.00016438,2]
[329613466,1718507446381,-1683.52,0.00016438,2]
[329613468,1718507446399,-1018.91,0.00016438,2]
[329613469,1718507446423,-592.92,0.00016438,2]
[329613471,1718507446445,-275.82048278,0.000165,2]
[329613473,1718507446458,-500.0,0.00016712,2]
[329613474,1718507446470,-500.0,0.00016712,2]
[329613476,1718507446504,-500.0,0.00016712,2]
[329613478,1718507446515,-500.0,0.00016712,2]
[329613480,1718507446539,-500.0,0.00016712,2]
[329613482,1718507446553,-500.0,0.00016712,2]
[329613484,1718507446566,-500.0,0.00016712,2]
[329613486,1718507446584,-500.0,0.00016712,2]
[329613488,1718507446603,-3285.18,0.00016712,2]
[329613489,1718507446614,-753.599856,0.00016712,2]
[329613517,1718507447380,-414.25192064,0.00016712,2]
[329613577,1718507449025,-172.03910305,0.00016438,2]
[329613579,1718507449043,-581.85822336,0.00016712,2]
[329613581,1718507449061,-2521.52,0.00016712,2]
[329613582,1718507449072,-500.0,0.00016712,2]
[329613585,1718507449084,-515.01,0.00016712,2]
[329613587,1718507449106,-500.0,0.00016712,2]
[329613589,1718507449121,-1000.14,0.00016712,2]
[329613592,1718507449132,-500.0,0.00016712,2]
[329613593,1718507449147,-1675.93,0.00016712,2]
[329613595,1718507449159,-1296.46,0.00016712,2]
[329613598,1718507449173,-500.0,0.00016712,2]
[329613600,1718507449201,-1266.79,0.00016712,2]
[329613601,1718507449213,-500.0,0.00016712,2]
[329613604,1718507449238,-500.0,0.00016712,2]
[329613606,1718507449250,-500.0,0.00016712,2]
[329613608,1718507449272,-758.65,0.00016712,2]
[329613610,1718507449286,-3430.86,0.00016712,2]
[329613612,1718507449299,-500.0,0.00016712,2]
[329613613,1718507449318,-500.0,0.00016712,2]
[329613615,1718507449348,-797.98,0.00016712,2]
[329613617,1718507449361,-500.0,0.00016712,2]
[329613619,1718507449380,-500.0,0.00016712,2]
[329613621,1718507449397,-1683.52,0.00016712,2]
[329613623,1718507449412,-1018.91,0.00016712,2]
[329613626,1718507449428,-592.92,0.00016712,2]
[329613628,1718507449446,-1653.14557954,0.000168,2]
[329613631,1718507449473,-1365.89441592,0.000168,2]
[329613634,1718507449501,-1940.40195428,0.000168,2]
[329613636,1718507449552,-153.0,0.00016849,2]
[329613638,1718507449570,-153.0,0.00016849,2]
[329613639,1718507449583,-153.0,0.00016849,2]
[329613641,1718507449599,-153.0,0.00016849,2]
[329613642,1718507449620,-153.0,0.00016849,2]
[329613644,1718507449644,-153.0,0.00016849,2]
[329613646,1718507449657,-153.0,0.00016849,2]
[329613648,1718507449668,-153.0,0.00016849,2]
[329613650,1718507449681,-153.0,0.00016849,2]
[329613651,1718507449702,-153.0,0.00016849,2]
[329613653,1718507449715,-153.0,0.00016849,2]
[329613654,1718507449728,-153.0,0.00016849,2]
[329613656,1718507449740,-153.0,0.00016849,2]
[329613657,1718507449759,-153.0,0.00016849,2]
[329613659,1718507449779,-153.0,0.00016849,2]
[329613661,1718507449807,-153.0,0.00016849,2]
[329613662,1718507449824,-153.0,0.00016849,2]
[329613664,1718507449835,-153.0,0.00016849,2]
[329613666,1718507449851,-153.0,0.00016849,2]
[329613669,1718507449886,-153.0,0.00016849,2]
[329613671,1718507449912,-153.0,0.00016849,2]
[329613673,1718507449948,-153.0,0.00016849,2]
[329613674,1718507449960,-153.0,0.00016849,2]
[329613677,1718507450026,-153.0,0.00016849,2]
[329613679,1718507450052,-153.0,0.00016868,2]
[329613681,1718507450066,-153.0,0.00016868,2]
[329613682,1718507450094,-153.0,0.00016868,2]
[329613684,1718507450131,-76.32492897,0.00016868,2]
[329614508,1718507632052,3000.0,0.00023,30]
[329614509,1718507695237,10000.0,0.0002475,120]
[329614510,1718507711758,5020.7,0.0002475,120]
[329614511,1718507745458,5000.0,0.0002475,120]
[329614512,1718507885717,1582.16020003,0.0001,2]
[329614513,1718508231136,3000.0,0.00023,30]
[329614514,1718508318781,1582.16020003,0.0001,2]
[329614534,1718508634049,-1193.72138822,0.00015416,2]
[329614536,1718508634393,-315.76615019,0.00015416,2]
[329614563,1718508640513,-72.67266162,0.00015416,2]
[329614565,1718508640526,-237.5484131,0.00015417,2]
[329614567,1718508640541,-244.237648,0.00016164,2]
[329614568,1718508640556,-242.71405486,0.00016338,2]
[329614573,1718508640782,-2129.08134374,0.00016338,2]
[329614574,1718508640797,-394.41172031,0.00016433,2]
[329614575,1718508640812,-699.07840469,0.00016434,2]
[329614576,1718508640825,-1489.79720005,0.00016435,2]
[329614577,1718508640841,-208.34382459,0.00016436,2]
[329614578,1718508640852,-155.35098424,0.00016436,2]
[329614579,1718508640866,-208.3654856,0.00016436,2]
[329614580,1718508640880,-155.36635229,0.00016436,2]
[329614581,1718508640893,-155.71702173,0.00016436,2]
[329614582,1718508640925,-659.95936809,0.00016436,2]
[329614583,1718508640941,-287.17141865,0.00016436,2]
[329614584,1718508640957,-414.66668281,0.00016436,2]
[329614585,1718508640996,-197.68612576,0.00016436,2]
[329614586,1718508641013,-155.15697868,0.00016436,2]
[329614587,1718508641056,-1343.59150643,0.00016436,2]
[329614588,1718508641073,-201.82295897,0.00016436,2]
[329614589,1718508641085,-156.11629009,0.00016436,2]
[329614590,1718508641097,-160.2215155,0.00016436,2]
[329614591,1718508641111,-1345.23715473,0.00016436,2]
[329614592,1718508641133,-5574.35101717,0.00016436,2]
[329614715,1718508643935,-5799.68472685,0.00016436,2]
[329614721,1718508644380,-4361.53505865,0.00016436,2]
[329614725,1718508644537,-355.92255145,0.00016436,2]
[329614727,1718508644549,-868.79397261,0.00016437,2]
[329614729,1718508644587,-500.0,0.00016438,2]
[329614730,1718508644604,-500.0,0.00016438,2]
[329614732,1718508644624,-5.59484973,0.00016438,2]
[329614993,1718508649404,-494.40515027,0.00016438,2]
[329614995,1718508649431,-500.0,0.00016438,2]
[329614997,1718508649456,-500.0,0.00016438,2]
[329614999,1718508649472,-500.0,0.00016438,2]
[329615001,1718508649485,-710.18,0.00016438,2]
[329615003,1718508649500,-500.0,0.00016438,2]
[329615005,1718508649536,-1477.6,0.00016438,2]
[329615008,1718508649576,-1445.91,0.00016438,2]
[329615010,1718508649587,-2698.94,0.00016438,2]
[329615012,1718508649599,-1923.21,0.00016438,2]
[329615014,1718508649619,-500.0,0.00016438,2]
[329615015,1718508649636,-1062.63,0.00016438,2]
[329615017,1718508649660,-781.1,0.00016438,2]
[329615019,1718508649678,-500.0,0.00016438,2]
[329615020,1718508649690,-3789.9,0.00016438,2]
[329615022,1718508649703,-500.0,0.00016438,2]
[329615024,1718508649718,-1331.66,0.00016438,2]
[329615026,1718508649733,-500.0,0.00016438,2]
[329615027,1718508649744,-500.0,0.00016438,2]
[329615029,1718508649755,-806.21,0.00016438,2]
[329615031,1718508649766,-500.0,0.00016438,2]
[329615033,1718508649793,-226.91394655,0.00016438,2]
[329615035,1718508649805,-1183.99,0.00016438,2]
[329615037,1718508649821,-500.0,0.00016438,2]
[329615039,1718508649832,-1257.75,0.00016438,2]
[329615041,1718508649852,-1880.2,0.00016438,2]
[329615043,1718508649863,-3416.14,0.00016438,2]
[329615045,1718508649889,-500.0,0.00016438,2]
[329615048,1718508649909,-275.82048278,0.000165,2]
[329615050,1718508649922,-5270.71057561,0.0001653,2]
[329615051,1718508649940,-500.0,0.00016711,2]
[329615053,1718508649951,-500.0,0.00016711,2]
[329615055,1718508649969,-500.0,0.00016712,2]
[329615057,1718508649979,-500.0,0.00016712,2]
[329615059,1718508650010,-500.0,0.00016712,2]
[329615062,1718508650037,-500.0,0.00016712,2]
[329615063,1718508650067,-500.0,0.00016712,2]
[329615065,1718508650082,-519.01989716,0.00016712,2]
[329615067,1718508650095,-710.18,0.00016712,2]
[329615069,1718508650124,-500.0,0.00016712,2]
[329615071,1718508650141,-1477.6,0.00016712,2]
[329615073,1718508650154,-1445.91,0.00016712,2]
[329615075,1718508650174,-2698.94,0.00016712,2]
[329615077,1718508650188,-1923.21,0.00016712,2]
[329615079,1718508650208,-500.0,0.00016712,2]
[329615081,1718508650224,-1062.63,0.00016712,2]
[329615083,1718508650249,-781.1,0.00016712,2]
[329615084,1718508650261,-500.0,0.00016712,2]
[329615086,1718508650288,-3789.9,0.00016712,2]
[329615088,1718508650304,-500.0,0.00016712,2]
[329615090,1718508650325,-1331.66,0.00016712,2]
[329615092,1718508650339,-288.04068284,0.00016712,2]
[329615094,1718508650354,-500.0,0.00016712,2]
[329615096,1718508650384,-806.21,0.00016712,2]
[329615097,1718508650397,-500.0,0.00016712,2]
[329615100,1718508650422,-1183.99,0.00016712,2]
[329615101,1718508650439,-500.0,0.00016712,2]
[329615102,1718508650455,-1257.75,0.00016712,2]
[329615103,1718508650467,-1880.2,0.00016712,2]
[329615104,1718508650479,-3416.14,0.00016712,2]
[329615105,1718508650496,-500.0,0.00016712,2]
[329615106,1718508650509,-153.0,0.0001691,2]
[329615108,1718508650523,-153.0,0.0001691,2]
[329615110,1718508650533,-153.0,0.0001691,2]
[329615112,1718508650551,-153.0,0.0001691,2]
[329615115,1718508650571,-153.0,0.0001691,2]
[329615117,1718508650589,-153.0,0.0001691,2]
[329615120,1718508650632,-153.0,0.0001691,2]
[329615123,1718508650657,-153.0,0.0001691,2]
[329615125,1718508650670,-153.0,0.0001691,2]
[329615127,1718508650705,-153.0,0.0001691,2]
[329615129,1718508650722,-153.0,0.0001691,2]
[329615131,1718508650738,-153.0,0.0001691,2]
[329615133,1718508650758,-153.0,0.0001691,2]
[329615135,1718508650774,-153.0,0.0001691,2]
[329615137,1718508650789,-153.0,0.0001691,2]
[329615139,1718508650814,-153.0,0.0001691,2]
[329615140,1718508650835,-153.0,0.0001691,2]
[329615143,1718508650851,-153.0,0.0001691,2]
[329615145,1718508650871,-153.0,0.0001691,2]
[329615148,1718508650896,-153.0,0.0001691,2]
[329615149,1718508650917,-153.0,0.0001691,2]
[329615151,1718508650944,-153.0,0.0001691,2]
[329615153,1718508650956,-153.0,0.0001691,2]
[329615155,1718508650979,-153.0,0.0001691,2]
[329615158,1718508651014,-153.0,0.00016911,2]
[329615159,1718508651036,-153.0,0.00016911,2]
[329615161,1718508651048,-153.0,0.00016911,2]
[329615163,1718508651067,-153.0,0.00016911,2]
[329615165,1718508651084,-153.0,0.00016911,2]
[329615167,1718508651099,-153.0,0.00016911,2]
[329615168,1718508651110,-153.0,0.00016911,2]
[329615170,1718508651121,-153.0,0.00016911,2]
[329615172,1718508651134,-153.0,0.00016911,2]
[329615173,1718508651144,-153.0,0.00016911,2]
[329615175,1718508651192,-153.0,0.00016911,2]
[329615178,1718508651212,-153.0,0.00016911,2]
[329615180,1718508651225,-153.0,0.00016911,2]
[329615182,1718508651238,-153.0,0.00016911,2]
[329615184,1718508651249,-153.0,0.00016911,2]
[329615186,1718508651269,-153.0,0.00016911,2]
[329615188,1718508651286,-153.0,0.00016911,2]
[329615190,1718508651307,-153.0,0.00016911,2]
[329615192,1718508651325,-153.0,0.00016911,2]
[329615194,1718508651345,-153.0,0.00016911,2]
[329615196,1718508651359,-153.0,0.00016911,2]
[329615198,1718508651373,-153.0,0.00016911,2]